fUSD/lending_fUSD_20250110
["ID","MTS","AMOUNT","RATE_DAILY","PERIOD"]
[348437235,1736527858915,-150.0,0.0001114,2]
[348437236,1736527858927,-150.0,0.00011178,2]
[348437237,1736527858942,-1000.0,0.000112,2]
[348437238,1736527858952,-890.22,0.00011201,2]
[348437239,1736527858962,-578.61,0.00011201,2]
[348437240,1736527858972,-556.33,0.00011201,2]
[348437241,1736527858982,-2965.27,0.00011201,2]
[348437242,1736527858992,-2457.71,0.00011201,2]
[348437243,1736527859002,-2355.3,0.00011201,2]
[348437244,1736527859013,-963.15,0.00011201,2]
[348437245,1736527859023,-553.49,0.00011201,2]
[348437246,1736527859033,-1236.75,0.00011201,2]
[348437247,1736527859043,-500.0,0.00011201,2]
[348437248,1736527859053,-1025.82,0.00011201,2]
[348437249,1736527859063,-996.12,0.00011201,2]
[348437250,1736527859073,-500.0,0.00011202,2]
[348437251,1736527859083,-500.0,0.00011202,2]
[348437252,1736527859093,-500.0,0.00011202,2]
[348437253,1736527859103,-500.0,0.00011202,2]
[348437254,1736527859114,-523.5,0.00011202,2]
[348437255,1736527859123,-859.83,0.00011202,2]
[348437256,1736527859133,-500.0,0.00011202,2]
[348437257,1736527859142,-577.64,0.00011202,2]
[348437258,1736527859152,-822.78,0.00011202,2]
[348437259,1736527859161,-500.0,0.00011202,2]
[348437260,1736527859171,-500.0,0.00011202,2]
[348437261,1736527859181,-500.0,0.00011202,2]
[348437262,1736527859190,-574.42,0.00011202,2]
[348437263,1736527859202,-722.62,0.00011202,2]
[348437264,1736527859211,-500.0,0.00011202,2]
[348437265,1736527859221,-515.76,0.00011202,2]
[348437266,1736527859231,-521.15,0.00011202,2]
[348437267,1736527859241,-616.85,0.00011202,2]
[348437268,1736527859252,-500.0,0.00011202,2]
[348437269,1736527859262,-500.0,0.00011202,2]
[348437270,1736527859273,-500.0,0.00011202,2]
[348437271,1736527859284,-500.0,0.00011202,2]
[348437272,1736527859293,-500.0,0.00011202,2]
[348437273,1736527859303,-500.0,0.00011202,2]
[348437274,1736527859314,-500.0,0.00011202,2]
[348437275,1736527859325,-500.0,0.00011202,2]
[348437276,1736527859336,-699.2,0.00011202,2]
[348437277,1736527859346,-1138.82,0.00011202,2]
[348437278,1736527859357,-589.89,0.00011202,2]
[348437279,1736527859368,-791.98,0.00011202,2]
[348437280,1736527859379,-586.31,0.00011202,2]
[348437281,1736527859390,-1092.02,0.00011202,2]
[348437282,1736527859401,-500.0,0.00011202,2]
[348437283,1736527859413,-500.0,0.00011202,2]
[348437284,1736527859423,-602.18,0.00011202,2]
[348437285,1736527859432,-500.0,0.00011202,2]
[348437286,1736527859443,-500.0,0.00011202,2]
[348437287,1736527859452,-2742.61,0.00011202,2]
[348437288,1736527859462,-500.0,0.00011202,2]
[348437289,1736527859472,-630.0,0.00011202,2]
[348437290,1736527859484,-953.1,0.00011202,2]
[348437291,1736527859494,-723.92,0.00011202,2]
[348437292,1736527859506,-259.82105402,0.00011202,2]
[348437293,1736527859518,-934.07,0.00011202,2]
[348437294,1736527859529,-908.78,0.00011202,2]
[348437295,1736527859540,-1188.77,0.00011202,2]
[348437296,1736527859551,-500.0,0.00011202,2]
[348437297,1736527859562,-500.0,0.00011202,2]
[348437298,1736527859573,-500.0,0.00011202,2]
[348437299,1736527859583,-833.24,0.00011202,2]
[348437300,1736527859592,-500.0,0.00011202,2]
[348437301,1736527859602,-500.0,0.00011202,2]
[348437302,1736527859612,-734.68,0.00011202,2]
[348437303,1736527859623,-500.0,0.00011202,2]
[348437304,1736527859633,-624.41,0.00011202,2]
[348437305,1736527859643,-500.0,0.00011202,2]
[348437306,1736527859653,-1372.12,0.00011202,2]
[348437307,1736527859664,-500.0,0.00011202,2]
[348437308,1736527859674,-1071.43,0.00011202,2]
[348437309,1736527859684,-500.0,0.00011202,2]
[348437310,1736527859697,-500.0,0.00011202,2]
[348437311,1736527859706,-669.83,0.00011202,2]
[348437312,1736527859717,-500.0,0.00011202,2]
[348437313,1736527859727,-749.37,0.00011202,2]
[348437314,1736527859736,-1356.59,0.00011202,2]
[348437315,1736527859746,-500.0,0.00011202,2]
[348437316,1736527859756,-500.0,0.00011202,2]
[348437317,1736527859766,-837.17,0.00011202,2]
[348437318,1736527859776,-636.13,0.00011202,2]
[348437319,1736527859785,-761.33,0.00011202,2]
[348437320,1736527859795,-1015.985295,0.00011202,2]
[348437321,1736527859804,-831.35,0.00011202,2]
[348437322,1736527859815,-1465.47,0.00011202,2]
[348437323,1736527859825,-605.51,0.00011202,2]
[348437324,1736527859836,-1009.16085,0.00011202,2]
[348437325,1736527859846,-500.0,0.00011202,2]
[348437326,1736527859857,-791.31,0.00011202,2]
[348437327,1736527859867,-1490.18,0.00011203,2]
[348437328,1736527859877,-1470.52,0.00011203,2]
[348437329,1736527859887,-3150.36,0.00011203,2]
[348437330,1736527859896,-5787.78,0.00011203,2]
[348437331,1736527859907,-950.65,0.00011203,2]
[348437332,1736527859916,-679.37,0.00011203,2]
[348437333,1736527859927,-743.83,0.00011203,2]
[348437334,1736527859943,-1665.37,0.00011203,2]
[348437335,1736527859954,-500.0,0.00011203,2]
[348437336,1736527859964,-812.55,0.00011203,2]
[348437337,1736527859975,-1627.7,0.00011203,2]
[348437338,1736527859985,-1094.67,0.00011203,2]
[348437339,1736527859996,-1462.08,0.00011203,2]
[348437340,1736527860006,-977.76,0.00011203,2]
[348437341,1736527860017,-500.0,0.00011205,2]
[348437342,1736527860027,-855.47,0.00011206,2]
[348437343,1736527860038,-2695.46,0.00011206,2]
[348437344,1736527860049,-533.24,0.00011206,2]
[348437345,1736527860059,-671.45,0.00011206,2]
[348437346,1736527860069,-814.61,0.00011206,2]
[348437347,1736527860079,-1225.14,0.00011206,2]
[348437348,1736527860089,-409.79059977,0.00011213,2]
[348437349,1736527860099,-1111.72,0.00011214,2]
[348437350,1736527860109,-665.67,0.00011214,2]
[348437351,1736527860120,-879.5,0.00011214,2]
[348437352,1736527860131,-689.56,0.00011215,2]
[348437353,1736527860141,-1289.88,0.00011215,2]
[348437354,1736527860153,-666.15,0.00011215,2]
[348437355,1736527860163,-817.17,0.00011215,2]
[348437356,1736527860174,-952.51,0.00011215,2]
[348437357,1736527860184,-150.0,0.00011232,2]
[348437358,1736527860196,-289.95751351,0.00011245,2]
[348437359,1736527860207,-735.6672817,0.00011269,2]
[348437360,1736527860217,-300.0,0.00011275,2]
[348437361,1736527860227,-1127.41,0.00011281,2]
[348437362,1736527860237,-29999.99,0.00011281,2]
[348437363,1736527860248,-9999.99,0.00011281,2]
[348437364,1736527860259,-29999.99,0.00011281,2]
[348437365,1736527860268,-241.30427949,0.00011306,5]
[348437366,1736527860281,-2202.79,0.00011312,2]
[348437367,1736527860293,-2249.3,0.00011312,2]
[348437368,1736527860304,-3061.03,0.00011312,2]
[348437369,1736527860314,-1721.12,0.00011312,2]
[348437370,1736527860324,-1003.85,0.00011312,2]
[348437371,1736527860334,-2503.23,0.00011312,2]
[348437372,1736527860345,-979.97,0.00011312,2]
[348437373,1736527860356,-500.0,0.00011313,2]
[348437374,1736527860367,-1524.53,0.00011313,2]
[348437375,1736527860376,-737.66,0.00011313,2]
[348437376,1736527860386,-2414.68,0.00011313,2]
[348437377,1736527860397,-661.14,0.00011313,2]
[348437378,1736527860407,-5830.19,0.00011313,2]
[348437379,1736527860418,-777.73,0.00011313,2]
[348437380,1736527860430,-1216.14,0.00011313,2]
[348437381,1736527860440,-1154.1,0.00011313,2]
[348437382,1736527860454,-1517.77,0.00011313,2]
[348437383,1736527860464,-2760.52,0.00011313,2]
[348437384,1736527860474,-879.57,0.00011313,2]
[348437385,1736527860484,-709.26,0.00011313,2]
[348437386,1736527860494,-1432.34,0.00011313,2]
[348437387,1736527860505,-500.0,0.00011314,2]
[348437388,1736527860516,-675.7,0.00011314,2]
[348437389,1736527860526,-630.96,0.00011314,2]
[348437390,1736527860535,-608.4,0.00011314,2]
[348437391,1736527860546,-637.48,0.00011314,2]
[348437392,1736527860556,-500.0,0.00011314,2]
[348437393,1736527860566,-500.0,0.00011314,2]
[348437394,1736527860576,-609.69,0.00011314,2]
[348437395,1736527860586,-647.82,0.00011314,2]
[348437396,1736527860596,-622.46,0.00011314,2]
[348437397,1736527860606,-664.54,0.00011314,2]
[348437398,1736527860617,-742.97,0.00011314,2]
[348437399,1736527860627,-519.94,0.00011314,2]
[348437400,1736527860638,-500.0,0.00011314,2]
[348437401,1736527860649,-500.0,0.00011314,2]
[348437402,1736527860897,-500.0,0.00011314,2]
[348437403,1736527860907,-795.36,0.00011314,2]
[348437404,1736527860917,-828.47,0.00011314,2]
[348437405,1736527860927,-500.0,0.00011314,2]
[348437406,1736527860939,-500.0,0.00011314,2]
[348437407,1736527860952,-500.0,0.00011314,2]
[348437408,1736527860962,-854.07,0.00011314,2]
[348437409,1736527860973,-500.0,0.00011314,2]
[348437410,1736527860984,-623.03,0.00011314,2]
[348437411,1736527860995,-500.0,0.00011314,2]
[348437412,1736527861005,-500.0,0.00011314,2]
[348437413,1736527861016,-700.03,0.00011314,2]
[348437414,1736527861027,-500.0,0.00011314,2]
[348437415,1736527861037,-506.46,0.00011314,2]
[348437416,1736527861049,-647.95,0.00011314,2]
[348437417,1736527861059,-650.7,0.00011314,2]
[348437418,1736527861069,-604.71,0.00011314,2]
[348437419,1736527861079,-500.0,0.00011314,2]
[348437420,1736527861091,-830.65,0.00011314,2]
[348437421,1736527861103,-647.32,0.00011314,2]
[348437422,1736527861114,-500.0,0.00011314,2]
[348437423,1736527861124,-764.1,0.00011314,2]
[348437424,1736527861135,-611.09,0.00011314,2]
[348437425,1736527861145,-1207.12,0.00011314,2]
[348437426,1736527861155,-500.0,0.00011314,2]
[348437427,1736527861166,-500.0,0.00011314,2]
[348437428,1736527861178,-551.69,0.00011314,2]
[348437429,1736527861188,-843.49,0.00011314,2]
[348437430,1736527861199,-872.01,0.00011314,2]
[348437431,1736527861209,-830.41,0.00011314,2]
[348437432,1736527861219,-612.43,0.00011314,2]
[348437433,1736527861228,-660.23,0.00011314,2]
[348437434,1736527861238,-500.0,0.00011314,2]
[348437435,1736527861248,-689.3,0.00011314,2]
[348437436,1736527861259,-500.0,0.00011314,2]
[348437437,1736527861270,-1993.37,0.00011314,2]
[348437438,1736527861279,-500.0,0.00011314,2]
[348437439,1736527861290,-500.0,0.00011314,2]
[348437440,1736527861299,-523.95,0.00011314,2]
[348437441,1736527861309,-631.21,0.00011314,2]
[348437442,1736527861318,-3469.92,0.00011314,2]
[348437443,1736527861328,-500.0,0.00011314,2]
[348437444,1736527861338,-927.23,0.00011314,2]
[348437445,1736527861347,-881.59,0.00011314,2]
[348437446,1736527861358,-562.89,0.00011314,2]
[348437447,1736527861370,-500.0,0.00011314,2]
[348437448,1736527861379,-631.9,0.00011314,2]
[348437449,1736527861391,-1305.18,0.00011315,2]
[348437450,1736527861402,-962.29,0.00011315,2]
[348437451,1736527861412,-2566.16,0.00011315,2]
[348437452,1736527861421,-3531.81,0.00011315,2]
[348437453,1736527861431,-3719.08,0.00011315,2]
[348437454,1736527861443,-1742.51,0.00011315,2]
[348437455,1736527861455,-3383.89,0.00011315,2]
[348437456,1736527861466,-500.0,0.00011315,2]
[348437457,1736527861476,-500.0,0.00011315,2]
[348437458,1736527861489,-500.0,0.00011315,2]
[348437459,1736527861500,-1413.21,0.00011315,2]
[348437460,1736527861511,-867.22,0.00011315,2]
[348437461,1736527861521,-556.09,0.00011315,2]
[348437462,1736527861532,-739.44,0.00011315,2]
[348437463,1736527861542,-956.59,0.00011315,2]
[348437464,1736527861553,-943.43,0.00011315,2]
[348437465,1736527861564,-254.60380089,0.00011315,2]
[348437466,1736527861574,-500.0,0.00011315,2]
[348437467,1736527861583,-617.46,0.00011315,2]
[348437468,1736527861593,-500.0,0.00011315,2]
[348437469,1736527861602,-1428.87,0.00011315,2]
[348437470,1736527861612,-1513.53,0.00011315,2]
[348437471,1736527861622,-2140.35,0.00011315,2]
[348437472,1736527861631,-1463.32,0.00011315,2]
[348437473,1736527861641,-4433.01,0.00011315,2]
[348437474,1736527861651,-1768.9,0.00011315,2]
[348437475,1736527861660,-2328.14,0.00011315,2]
[348437476,1736527861669,-1302.99,0.00011315,2]
[348437477,1736527861681,-1310.31,0.00011315,2]
[348437478,1736527861690,-150.0,0.00011316,2]
[348437479,1736527861702,-1111.72,0.00011327,2]
[348437480,1736527861712,-327420.25865771,0.00011327,2]
[348437481,1736527861722,-500.0,0.00011342,2]
[348437482,1736527861732,-4616.69830924,0.00011366,2]
[348437483,1736527862040,-2899.13717878,0.00011366,2]
[348437484,1736527862050,-150.0,0.00011369,2]
[348437485,1736527862059,-24785.46525868,0.0001137,2]
[348437486,1736527862070,-10273.90914272,0.0001137,2]
[348437487,1736527862092,-1577.6262307,0.0001137,2]
[348437488,1736527862104,-9758.819989,0.0001137,2]
[348437489,1736527862115,-1977.8158802,0.0001137,2]
[348437490,1736527862148,-449.23479685,9.284e-05,2]
[348437491,1736527866284,-1970.57556373,9.284e-05,2]
[348437492,1736527866336,-209.39963942,9.284e-05,2]
[348437493,1736527866349,-287.78036058,9.558e-05,2]
[348437494,1736527866367,-490.29000001,9.558e-05,2]
[348437495,1736527867047,-1851.13963941,9.558e-05,2]
[348437496,1736527867062,-2629.21,9.832e-05,2]
[348437497,1736527867077,-2629.21,0.00010106,2]
[348437498,1736527867092,-1104.0,0.00010171,2]
[348437499,1736527867106,-584.27805932,0.00010287,2]
[348437500,1736527867121,-2629.21,0.0001038,2]
[348437501,1736527867135,-4328.3634987,0.0001137,2]
[348437502,1736527867150,-424.8,0.00011372,2]
[348437503,1736527867163,-3297.84683647,0.0001138,2]
[348437504,1736527867179,-289.95751351,0.00011383,2]
[348437505,1736527867193,-150.0,0.00011385,2]
[348437506,1736527867210,-454.0,0.00011397,2]
[348437507,1736527867226,-500.0,0.00011397,2]
[348437508,1736527867240,-2001.99,0.000114,2]
[348437509,1736527867253,-4485.668703,0.000114,2]
[348437510,1736527867263,-10111.271171,0.000114,2]
[348437511,1736527867274,-1878.46844854,0.000114,2]
[348437512,1736527867284,-500.0,0.00011407,2]
[348437513,1736527867296,-2000.0,0.00011407,2]
[348437514,1736527867306,-1500.0,0.00011428,2]
[348437515,1736527867318,-1111.72,0.00011442,2]
[348437516,1736527867329,-500.0,0.00011443,2]
[348437517,1736527867339,-500.0,0.00011443,2]
[348437518,1736527867348,-500.0,0.00011443,2]
[348437519,1736527867358,-500.0,0.00011443,2]
[348437520,1736527867368,-500.0,0.00011443,2]
[348437521,1736527867379,-444.9544,0.00011443,2]
[348437522,1736527867389,-554.1521,0.00011443,2]
[348437523,1736527867399,-3000.0,0.0001145,2]
[348437524,1736527867409,-216.34300138,0.00011466,2]
[348437525,1736527867418,-1000.0,0.00011473,2]
[348437526,1736527867428,-890.22,0.00011475,2]
[348437527,1736527867439,-578.61,0.00011475,2]
[348437528,1736527867450,-556.33,0.00011475,2]
[348437529,1736527867460,-2965.27,0.00011475,2]
[348437530,1736527867471,-2355.3,0.00011475,2]
[348437531,1736527867480,-963.15,0.00011475,2]
[348437532,1736527867490,-553.49,0.00011475,2]
[348437533,1736527867500,-1236.75,0.00011475,2]
[348437534,1736527867509,-500.0,0.00011475,2]
[348437535,1736527867520,-1025.82,0.00011475,2]
[348437536,1736527867530,-996.12,0.00011475,2]
[348437537,1736527867540,-500.0,0.00011476,2]
[348437538,1736527867550,-500.0,0.00011476,2]
[348437539,1736527867560,-500.0,0.00011476,2]
[348437540,1736527867571,-500.0,0.00011476,2]
[348437541,1736527867580,-523.5,0.00011476,2]
[348437542,1736527867590,-859.83,0.00011476,2]
[348437543,1736527867600,-288.09179359,0.00011476,2]
[348437544,1736527867612,-577.64,0.00011476,2]
[348437545,1736527867623,-822.78,0.00011476,2]
[348437546,1736527867633,-500.0,0.00011476,2]
[348437547,1736527867643,-500.0,0.00011476,2]
[348437548,1736527867653,-500.0,0.00011476,2]
[348437549,1736527867662,-574.42,0.00011476,2]
[348437550,1736527867671,-722.62,0.00011476,2]
[348437551,1736527867682,-500.0,0.00011476,2]
[348437552,1736527867692,-515.76,0.00011476,2]
[348437553,1736527867704,-521.15,0.00011476,2]
[348437554,1736527867714,-616.85,0.00011476,2]
[348437555,1736527867724,-500.0,0.00011476,2]
[348437556,1736527867734,-500.0,0.00011476,2]
[348437557,1736527867744,-500.0,0.00011476,2]
[348437558,1736527867754,-500.0,0.00011476,2]
[348437559,1736527867763,-500.0,0.00011476,2]
[348437560,1736527867773,-500.0,0.00011476,2]
[348437561,1736527867782,-500.0,0.00011476,2]
[348437562,1736527867792,-500.0,0.00011476,2]
[348437563,1736527867802,-699.2,0.00011476,2]
[348437564,1736527867811,-1138.82,0.00011476,2]
[348437565,1736527867821,-589.89,0.00011476,2]
[348437566,1736527867831,-791.98,0.00011476,2]
[348437567,1736527867842,-586.31,0.00011476,2]
[348437568,1736527867852,-1092.02,0.00011476,2]
[348437569,1736527867862,-500.0,0.00011476,2]
[348437570,1736527867872,-500.0,0.00011476,2]
[348437571,1736527868216,-602.18,0.00011476,2]
[348437572,1736527868374,-500.0,0.00011476,2]
[348437573,1736527868396,-500.0,0.00011476,2]
[348437574,1736527868415,-2742.61,0.00011476,2]
[348437575,1736527868426,-500.0,0.00011476,2]
[348437576,1736527868435,-630.0,0.00011476,2]
[348437577,1736527868446,-953.1,0.00011476,2]
[348437578,1736527868457,-723.92,0.00011476,2]
[348437579,1736527868466,-934.07,0.00011476,2]
[348437580,1736527868476,-908.78,0.00011476,2]
[348437581,1736527868485,-1188.77,0.00011476,2]
[348437582,1736527868494,-500.0,0.00011476,2]
[348437583,1736527868505,-500.0,0.00011476,2]
[348437584,1736527868515,-500.0,0.00011476,2]
[348437585,1736527868525,-833.24,0.00011476,2]
[348437586,1736527868535,-500.0,0.00011476,2]
[348437587,1736527868546,-500.0,0.00011476,2]
[348437588,1736527868556,-734.68,0.00011476,2]
[348437589,1736527868566,-500.0,0.00011476,2]
[348437590,1736527868576,-624.41,0.00011476,2]
[348437591,1736527868586,-500.0,0.00011476,2]
[348437592,1736527868595,-1372.12,0.00011476,2]
[348437593,1736527868605,-500.0,0.00011476,2]
[348437594,1736527868615,-1071.43,0.00011476,2]
[348437595,1736527868624,-500.0,0.00011476,2]
[348437596,1736527868634,-500.0,0.00011476,2]
[348437597,1736527868643,-669.83,0.00011476,2]
[348437598,1736527868653,-500.0,0.00011476,2]
[348437599,1736527868662,-749.37,0.00011476,2]
[348437600,1736527868672,-1356.59,0.00011476,2]
[348437601,1736527868681,-500.0,0.00011476,2]
[348437602,1736527868691,-500.0,0.00011476,2]
[348437603,1736527868701,-837.17,0.00011476,2]
[348437604,1736527868711,-636.13,0.00011476,2]
[348437605,1736527868720,-761.33,0.00011476,2]
[348437606,1736527868730,-1015.985295,0.00011476,2]
[348437607,1736527868739,-831.35,0.00011476,2]
[348437608,1736527868748,-1465.47,0.00011476,2]
[348437609,1736527868758,-605.51,0.00011476,2]
[348437610,1736527868768,-1009.16085,0.00011476,2]
[348437611,1736527868778,-500.0,0.00011476,2]
[348437612,1736527868787,-791.31,0.00011476,2]
[348437613,1736527868797,-1470.52,0.00011477,2]
[348437614,1736527868807,-3150.36,0.00011477,2]
[348437615,1736527868816,-5787.78,0.00011477,2]
[348437616,1736527868827,-950.65,0.00011477,2]
[348437617,1736527868836,-679.37,0.00011477,2]
[348437618,1736527868846,-743.83,0.00011477,2]
[348437619,1736527868855,-1665.37,0.00011477,2]
[348437620,1736527868865,-500.0,0.00011477,2]
[348437621,1736527868875,-812.55,0.00011477,2]
[348437622,1736527868885,-1627.7,0.00011477,2]
[348437623,1736527868895,-1094.67,0.00011477,2]
[348437624,1736527868904,-1462.08,0.00011477,2]
[348437625,1736527868914,-977.76,0.00011477,2]
[348437626,1736527868924,-593.79638054,0.00011479,2]
[348437627,1736527868935,-437.12,0.00011479,2]
[348437628,1736527868946,-437.12,0.00011479,2]
[348437629,1736527868957,-437.12,0.00011479,2]
[348437630,1736527868967,-150.0,0.00011479,2]
[348437631,1736527868978,-855.47,0.0001148,2]
[348437632,1736527868989,-2695.46,0.0001148,2]
[348437633,1736527868999,-533.24,0.0001148,2]
[348437634,1736527869008,-671.45,0.0001148,2]
[348437635,1736527869020,-814.61,0.0001148,2]
[348437636,1736527869030,-1225.14,0.0001148,2]
[348437637,1736527869040,-665.67,0.00011488,2]
[348437638,1736527869049,-879.5,0.00011488,2]
[348437639,1736527869059,-689.56,0.00011489,2]
[348437640,1736527869068,-1289.88,0.00011489,2]
[348437641,1736527869078,-666.15,0.00011489,2]
[348437642,1736527869087,-817.17,0.00011489,2]
[348437643,1736527869097,-952.51,0.00011489,2]
[348437644,1736527869106,-5000.0,0.0001149,2]
[348437645,1736527869116,-1111.72,0.00011499,2]
[348437646,1736527869126,-36341.85059579,0.000115,2]
[348437647,1736527869135,-145000.0,0.000115,5]
[348437648,1736527869145,-10391.54681432,0.000115,7]
[348437649,1736527869155,-150.0,0.000115,2]
[348437650,1736527869164,-5226.97106439,0.000115,2]
[348437651,1736527869173,-200.0,0.000115,2]
[348437652,1736527869182,-150.0,0.00011506,2]
[348437653,1736527869192,-2751.0,0.00011507,2]
[348437654,1736527869202,-289.95751351,0.00011521,2]
[348437655,1736527869214,-2202.79,0.00011586,2]
[348437656,1736527869224,-2249.3,0.00011586,2]
[348437657,1736527869234,-3061.03,0.00011586,2]
[348437658,1736527869243,-1721.12,0.00011586,2]
[348437659,1736527869253,-1003.85,0.00011586,2]
[348437660,1736527869262,-2503.23,0.00011586,2]
[348437661,1736527869272,-979.97,0.00011586,2]
[348437662,1736527869282,-737.66,0.00011587,2]
[348437663,1736527869291,-2414.68,0.00011587,2]
[348437664,1736527869301,-661.14,0.00011587,2]
[348437665,1736527869311,-5830.19,0.00011587,2]
[348437666,1736527869335,-777.73,0.00011587,2]
[348437667,1736527869346,-1216.14,0.00011587,2]
[348437668,1736527869357,-1154.1,0.00011587,2]
[348437669,1736527869367,-1517.77,0.00011587,2]
[348437670,1736527869378,-2760.52,0.00011587,2]
[348437671,1736527869388,-879.57,0.00011587,2]
[348437672,1736527869398,-709.26,0.00011587,2]
[348437673,1736527869409,-1432.34,0.00011587,2]
[348437674,1736527869418,-500.0,0.00011588,2]
[348437675,1736527869429,-675.7,0.00011588,2]
[348437676,1736527869438,-630.96,0.00011588,2]
[348437677,1736527869449,-608.4,0.00011588,2]
[348437678,1736527869462,-637.48,0.00011588,2]
[348437679,1736527869472,-500.0,0.00011588,2]
[348437680,1736527869483,-500.0,0.00011588,2]
[348437681,1736527869492,-609.69,0.00011588,2]
[348437682,1736527869502,-647.82,0.00011588,2]
[348437683,1736527869513,-622.46,0.00011588,2]
[348437684,1736527869523,-664.54,0.00011588,2]
[348437685,1736527869534,-742.97,0.00011588,2]
[348437686,1736527869544,-519.94,0.00011588,2]
[348437687,1736527869554,-500.0,0.00011588,2]
[348437688,1736527869564,-500.0,0.00011588,2]
[348437689,1736527869574,-500.0,0.00011588,2]
[348437690,1736527869584,-795.36,0.00011588,2]
[348437691,1736527869594,-828.47,0.00011588,2]
[348437692,1736527869604,-500.0,0.00011588,2]
[348437693,1736527869614,-500.0,0.00011588,2]
[348437694,1736527869624,-500.0,0.00011588,2]
[348437695,1736527869633,-854.07,0.00011588,2]
[348437696,1736527869643,-500.0,0.00011588,2]
[348437697,1736527869653,-500.0,0.00011588,2]
[348437698,1736527869664,-700.03,0.00011588,2]
[348437699,1736527869674,-500.0,0.00011588,2]
[348437700,1736527869685,-500.0,0.00011588,2]
[348437701,1736527869695,-506.46,0.00011588,2]
[348437702,1736527869706,-647.95,0.00011588,2]
[348437703,1736527869716,-650.7,0.00011588,2]
[348437704,1736527869727,-604.71,0.00011588,2]
[348437705,1736527869738,-500.0,0.00011588,2]
[348437706,1736527869748,-830.65,0.00011588,2]
[348437707,1736527869759,-647.32,0.00011588,2]
[348437708,1736527869769,-500.0,0.00011588,2]
[348437709,1736527869779,-764.1,0.00011588,2]
[348437710,1736527869790,-611.09,0.00011588,2]
[348437711,1736527869800,-500.0,0.00011588,2]
[348437712,1736527869810,-500.0,0.00011588,2]
[348437713,1736527869821,-551.69,0.00011588,2]
[348437714,1736527869837,-843.49,0.00011588,2]
[348437715,1736527869847,-830.41,0.00011588,2]
[348437716,1736527869857,-872.01,0.00011588,2]
[348437717,1736527869867,-612.43,0.00011588,2]
[348437718,1736527869877,-660.23,0.00011588,2]
[348437719,1736527869887,-500.0,0.00011588,2]
[348437720,1736527869898,-689.3,0.00011588,2]
[348437721,1736527869908,-500.0,0.00011588,2]
[348437722,1736527869918,-1993.37,0.00011588,2]
[348437723,1736527869929,-500.0,0.00011588,2]
[348437724,1736527869943,-500.0,0.00011588,2]
[348437725,1736527869954,-523.95,0.00011588,2]
[348437726,1736527869965,-631.21,0.00011588,2]
[348437727,1736527869976,-3469.92,0.00011588,2]
[348437728,1736527869986,-500.0,0.00011588,2]
[348437729,1736527869997,-927.23,0.00011588,2]
[348437730,1736527870008,-881.59,0.00011588,2]
[348437731,1736527870019,-562.89,0.00011588,2]
[348437732,1736527870030,-500.0,0.00011588,2]
[348437733,1736527870041,-631.9,0.00011588,2]
[348437734,1736527870052,-1305.18,0.00011589,2]